bitfinex-derivatives/quotes_BTCF0:USTF0_20250402
["timestamp","ask_amount","ask_price","bid_price","bid_amount"]
[1743601596966,0.08226518,85823.0,85822.0,0.51168]
[1743601597267,0.0004,85839.0,85822.0,0.96168]
[1743601597471,0.0004,85839.0,85838.0,0.3608]
[1743601597767,0.0004,85839.0,85838.0,0.47056]
[1743601598063,0.0004,85839.0,85838.0,0.3616]
[1743601600469,0.0004,85839.0,85838.0,0.0008]
[1743601600678,0.18784,85839.0,85830.0,0.00017482]
[1743601600960,0.20257,85839.0,85834.0,0.3608]
[1743601601160,0.20257,85839.0,85834.0,0.0006]
[1743601601555,0.10847,85839.0,85834.0,0.0006]
[1743601601964,0.10783,85839.0,85834.0,0.0006]
[1743601602265,0.10851,85839.0,85836.0,0.3608]
[1743601602566,0.01581,85839.0,85836.0,0.3614]
[1743601602764,0.01513,85839.0,85836.0,0.0006]
[1743601602960,0.0941,85838.0,85830.0,0.00017482]
[1743601603162,0.09478,85838.0,85837.0,0.3608]
[1743601603464,0.04676284,85847.0,85837.0,0.0006]
[1743601603669,0.04676284,85847.0,85846.0,0.3608]
[1743601603967,0.00017284,85847.0,85846.0,0.36164]
[1743601604167,0.00017284,85847.0,85846.0,0.46952]
[1743601604469,0.00017284,85847.0,85846.0,0.67952]
[1743601604770,0.00017284,85847.0,85846.0,0.57164]
[1743601604959,0.00017284,85847.0,85846.0,0.46948]
[1743601605272,0.26423064,85871.0,85846.0,0.36164]
[1743601605460,0.01461527,85870.0,85857.0,0.3608]
[1743601605662,0.01461527,85869.0,85857.0,0.3616]
[1743601605968,0.15870439,85869.0,85857.0,0.3616]
[1743601606170,0.3608,85863.0,85857.0,0.0008]
[1743601606367,0.37541527,85862.0,85832.0,0.3608]
[1743601606666,0.3608,85847.0,85838.0,0.00017471]
[1743601606867,0.3608,85839.0,85838.0,0.00017471]
[1743601607060,0.37601528,85839.0,85838.0,0.00017471]
[1743601607262,0.657008,85839.0,85838.0,0.00017471]
[1743601607556,0.67576622,85839.0,85819.0,0.34512038]
[1743601607764,0.67576622,85839.0,85788.0,0.3608]
[1743601607765,0.3608,85820.0,85788.0,0.3608]
[1743601607962,0.01461527,85819.0,85800.0,0.31095599]
[1743601608265,0.15715351,85819.0,85801.0,0.1935]
[1743601608467,0.01461527,85818.0,85806.0,0.3608]
[1743601608772,0.3608,85857.0,85817.0,0.3608]
[1743601609064,0.3608,85872.0,85845.0,0.3608]
[1743601609276,0.00064,85867.0,85852.0,0.3608]
[1743601609471,0.00016,85868.0,85852.0,0.36144]
[1743601609670,0.00016,85868.0,85860.0,0.3608]
[1743601609864,0.3608,85872.0,85860.0,0.3608]
[1743601610071,0.00072,85868.0,85860.0,0.3608]
[1743601610272,0.00072,85868.0,85867.0,0.3608]
[1743601610662,0.3608,85880.0,85860.0,0.3608]
[1743601610864,0.3608,85868.0,85855.0,0.00017471]
[1743601611167,0.00022529,85855.0,85844.0,0.0975]
[1743601611372,0.00022529,85855.0,85850.0,0.3608]
[1743601611964,0.00022529,85855.0,85851.0,0.0958]
[1743601612161,0.3608,85908.0,85854.0,0.3608]
[1743601612366,0.012,85911.0,85886.0,0.3608]
[1743601612560,0.012,85911.0,85902.0,0.3608]
[1743601612866,0.012,85911.0,85909.0,0.3608]
[1743601613371,0.3608,85910.0,85898.0,0.00017471]
[1743601613567,0.3608,85902.0,85898.0,0.00017471]
[1743601613764,0.0957,85901.0,85865.0,0.36254689]
[1743601613976,0.3608,85889.0,85866.0,0.0943]
[1743601614275,0.3608,85874.0,85865.0,0.00174689]
[1743601614459,0.3608,85866.0,85865.0,0.00174689]
[1743601615064,0.64629118,85866.0,85835.0,0.3608]
[1743601615273,0.3608,85851.0,85846.0,0.00046595]
[1743601615572,0.36033414,85847.0,85830.0,0.00046603]
[1743601615873,0.3608,85840.0,85831.0,0.0996]
[1743601616076,0.091,85839.0,85831.0,0.1002]
[1743601616370,0.09164,85839.0,85831.0,0.1002]
[1743601616576,0.09164,85839.0,85831.0,0.0996]
[1743601616773,0.3608,85833.0,85830.0,0.00046603]
[1743601617071,0.091,85832.0,85823.0,0.4571395]
[1743601617274,0.3608,85824.0,85823.0,0.4578195]
[1743601617463,0.00064,85824.0,85823.0,0.4578195]
[1743601617664,0.3608,85833.0,85823.0,0.4578195]
[1743601617877,0.00032,85840.0,85832.0,0.3608]
[1743601618082,0.00108,85840.0,85839.0,0.3608]
[1743601618270,0.00032,85840.0,85839.0,0.36156]
[1743601618577,0.3608,85865.0,85839.0,0.72236]
[1743601618874,0.36140001,85865.0,85850.0,0.67175599]
[1743601619176,0.36140001,85865.0,85851.0,0.1878]
[1743601619377,0.36140001,85865.0,85851.0,0.18864]
[1743601619673,0.00060001,85865.0,85864.0,0.3608]
[1743601619873,0.0004,85887.0,85864.0,0.36156]
[1743601620076,0.00132,85887.0,85876.0,0.3608]
[1743601620275,0.12889269,85886.0,85877.0,0.1878]
[1743601620477,0.12981269,85886.0,85877.0,0.09182]
[1743601620681,0.3608,85881.0,85877.0,0.00092]
[1743601620882,0.1425,85880.0,85877.0,0.00092]
[1743601621070,0.27557628,85880.0,85877.0,0.00092]
[1743601621270,0.13307628,85880.0,85879.0,0.3608]
[1743601621465,0.13307628,85880.0,85879.0,0.3618]
[1743601621667,0.00092,85880.0,85879.0,0.001]
[1743601621883,0.00092,85880.0,85870.0,0.00017471]
[1743601621884,0.3777232,85880.0,85870.0,0.00017471]
[1743601622181,0.3608,85871.0,85853.0,0.1073]
[1743601622371,0.3608,85864.0,85854.0,0.0967]
[1743601622577,0.3608,85855.0,85854.0,0.00092]
[1743601622768,0.3608,85855.0,85834.0,0.3608]
[1743601622769,0.36172,85855.0,85845.0,0.0967]
[1743601622970,0.3608,85848.0,85837.0,0.89624249]
[1743601623178,0.3608,85848.0,85817.0,0.3608]
[1743601623179,0.3608,85838.0,85806.0,0.1051]
[1743601623373,0.3608,85838.0,85790.0,0.3608]
[1743601623374,0.11615829,85819.0,85811.0,0.1073]
[1743601623681,0.3608,85813.0,85811.0,0.1079]
[1743601623883,0.0927,85812.0,85811.0,0.1079]
[1743601624379,0.09348301,85812.0,85811.0,0.1079]
[1743601624681,0.09348301,85812.0,85811.0,0.0006]
[1743601624877,0.29684937,85812.0,85811.0,0.0006]
[1743601625386,0.29684937,85812.0,85806.0,0.00017471]
[1743601625678,0.21544937,85812.0,85806.0,0.00017471]
[1743601626081,0.0814,85811.0,85806.0,0.00017471]
[1743601626279,0.0814,85811.0,85806.0,0.36097471]
[1743601626484,0.214294,85810.0,85806.0,0.00017471]
[1743601626684,0.214294,85810.0,85806.0,0.00077471]
[1743601626889,0.0814,85809.0,85806.0,0.00017471]
[1743601627383,0.22552706,85808.0,85806.0,0.00017471]
[1743601627583,0.00013589,85807.0,85806.0,0.00017471]
[1743601627785,0.13352706,85808.0,85806.0,0.00017471]
[1743601628085,0.00012719,85807.0,85806.0,0.00017471]
[1743601628585,0.00012719,85807.0,85806.0,0.10027471]
[1743601629279,0.0814,85818.0,85806.0,0.10027471]
[1743601629487,0.1075,85823.0,85811.0,0.3608]
[1743601629681,0.13494302,85817.0,85811.0,0.3608]
[1743601629869,8.877e-05,85816.0,85811.0,0.3608]
[1743601630076,0.13796,85835.0,85811.0,0.3608]
[1743601630077,0.0004,85855.0,85815.0,0.3608]
[1743601630382,0.1075,85854.0,85849.0,0.3608]
[1743601630586,0.1075,85854.0,85834.0,0.3608]
[1743601630587,0.24244302,85854.0,85841.0,0.3608]
[1743601631088,0.24244302,85854.0,85853.0,0.3608]
[1743601631272,0.1075,85854.0,85853.0,0.3608]
[1743601632184,0.00088001,85854.0,85853.0,0.3614]
[1743601632388,5.67e-05,85854.0,85853.0,0.3614]
[1743601633476,0.12791107,85854.0,85853.0,0.0006]
[1743601633679,0.23483107,85854.0,85848.0,0.3608]
[1743601633879,0.10692,85854.0,85848.0,0.3614]
[1743601634289,0.00092,85854.0,85848.0,0.3614]
[1743601634487,0.0004,85855.0,85848.0,0.3614]
[1743601634694,5.67e-05,85853.0,85849.0,0.3608]
[1743601634985,5.67e-05,85853.0,85849.0,0.3614]
[1743601635185,0.0004,85855.0,85849.0,0.3614]
[1743601635186,0.0004,85855.0,85850.0,0.2076]
[1743601635389,0.3608,85883.0,85850.0,0.2082]
[1743601635390,0.1107,85878.0,85850.0,0.2082]
[1743601635587,0.1107,85878.0,85858.0,0.3608]
[1743601635792,0.44067845,85870.0,85859.0,0.2076]
[1743601636092,0.1107,85869.0,85859.0,0.1072]
[1743601636392,0.00088001,85869.0,85865.0,0.3608]
[1743601636586,0.12972246,85868.0,85866.0,0.1066]
[1743601636779,0.13060247,85868.0,85866.0,0.1066]
[1743601636980,0.1012,85867.0,85866.0,0.1066]
[1743601637176,0.1827,85867.0,85859.0,0.3608]
[1743601637385,0.31502582,85867.0,85859.0,0.3614]
[1743601637581,0.23352582,85867.0,85859.0,0.3614]
[1743601637797,0.23352582,85867.0,85859.0,0.0006]
[1743601637993,0.13232582,85867.0,85866.0,0.3608]
[1743601638186,0.00092,85867.0,85866.0,0.3608]
[1743601638493,0.1012,85870.0,85866.0,0.3614]
[1743601638694,0.00017449,85873.0,85868.0,0.3608]
[1743601638890,0.00017449,85873.0,85869.0,0.1077]
[1743601639289,0.20823281,85910.0,85869.0,0.85925599]
[1743601639587,0.13924131,85896.0,85895.0,0.7216]
[1743601639783,0.1386413,85896.0,85895.0,0.7216]
[1743601639989,0.1386413,85896.0,85895.0,0.7222]
[1743601640292,0.27209535,85896.0,85895.0,0.0006]
[1743601640491,0.27277535,85896.0,85895.0,0.0006]
[1743601640790,0.1393213,85896.0,85895.0,0.3608]
[1743601641094,0.13861484,85899.0,85895.0,0.3614]
[1743601641397,0.00076,85899.0,85898.0,0.3608]
[1743601641593,0.00076,85899.0,85898.0,0.36156]
[1743601643486,0.00076,85899.0,85887.0,0.0001747]
[1743601643686,0.3608,85894.0,85867.0,0.3608]
[1743601643894,0.3608,85894.0,85867.0,0.0006]
[1743601643895,0.31095599,85880.0,85867.0,0.0006]
[1743601644087,0.3608,85876.0,85858.0,0.1072]
[1743601644288,0.3608,85863.0,85859.0,0.1055]
[1743601644484,0.3616,85863.0,85860.0,0.1072]
[1743601644695,0.0008,85863.0,85860.0,0.10788]
[1743601644888,0.12431653,85862.0,85860.0,0.10788]
[1743601645203,0.0008,85862.0,85861.0,0.1055]
[1743601645385,0.0008,85862.0,85861.0,0.1061]
[1743601645585,0.2032,85866.0,85861.0,0.1061]
[1743601645986,0.13297802,85865.0,85862.0,0.106]
[1743601646182,0.13377802,85865.0,85862.0,0.1066]
[1743601646396,0.13377802,85865.0,85864.0,0.3608]
[1743601646596,0.13377802,85865.0,85864.0,0.0006]
[1743601646797,0.35167802,85865.0,85864.0,0.0006]
[1743601647097,0.13377802,85865.0,85864.0,0.3614]
[1743601647299,0.0001747,85870.0,85864.0,0.3614]
[1743601647594,0.0001747,85870.0,85865.0,0.21]
[1743601647898,0.12532527,85869.0,85865.0,0.0006]
[1743601648087,0.2179,85868.0,85865.0,0.0006]
[1743601648287,0.00084,85868.0,85865.0,0.0006]
[1743601648691,0.0001747,85870.0,85867.0,0.3608]
[1743601648890,0.0001747,85870.0,85868.0,0.21]
[1743601649201,0.0001747,85870.0,85868.0,0.2106]
[1743601649395,0.0001747,85870.0,85868.0,0.1046]
[1743601649585,0.13397781,85869.0,85868.0,0.0006]
[1743601649791,0.35117781,85869.0,85868.0,0.0006]
[1743601650599,0.35117781,85869.0,85855.0,0.1078]
[1743601650900,0.13477781,85869.0,85855.0,0.10852]
[1743601651100,0.2164,85868.0,85855.0,0.10852]
[1743601651396,0.2164,85868.0,85842.0,0.3608]
[1743601651397,0.3608,85857.0,85842.0,0.3608]
[1743601651602,0.3608,85857.0,85830.0,0.00046603]
[1743601651603,0.3608,85848.0,85830.0,0.00046603]
[1743601651898,0.3608,85848.0,85847.0,0.3608]
[1743601651899,0.00124001,85848.0,85847.0,0.3608]
[1743601652097,0.3608,85874.0,85847.0,0.3614]
[1743601652399,0.3608,85866.0,85848.0,0.1048]
[1743601652705,0.3608,85858.0,85852.0,0.0001747]
[1743601652895,0.36164,85858.0,85852.0,0.0007747]
[1743601653095,0.34306147,85857.0,85839.0,0.3608]
[1743601653290,0.3608,85848.0,85840.0,0.1048]
[1743601653494,0.3608,85848.0,85840.0,0.1054]
[1743601653495,0.00108,85848.0,85840.0,0.1054]
[1743601653700,0.212,85857.0,85840.0,0.1054]
[1743601653896,0.1261111,85847.0,85840.0,0.0006]
[1743601654193,0.212,85846.0,85836.0,0.3608]
[1743601654394,0.21304001,85846.0,85841.0,0.3608]
[1743601654589,0.13487804,85845.0,85841.0,0.00064]
[1743601654787,0.13672,85844.0,85835.0,0.0001747]
[1743601654990,0.3608,85836.0,85818.0,0.40796112]
[1743601655200,0.3608,85824.0,85823.0,0.3385676]
[1743601655405,0.36184001,85824.0,85823.0,0.3385676]
[1743601655593,0.64671805,85824.0,85818.0,0.40796112]
[1743601655794,0.64671805,85824.0,85789.0,0.3608]
[1743601655795,0.3608,85819.0,85789.0,0.3608]
[1743601655993,0.3608,85808.0,85792.0,0.1093]
[1743601656194,0.5124,85808.0,85804.0,0.0001747]
[1743601656409,0.24096,85807.0,85804.0,0.0001747]
[1743601656591,0.1064,85807.0,85804.0,0.0001747]
[1743601656787,0.0016,85807.0,85806.0,0.3608]
[1743601656995,0.3608,85819.0,85806.0,0.3608]
[1743601657196,0.12472175,85807.0,85804.0,0.0001747]
[1743601657600,0.0016,85807.0,85804.0,0.0001747]
[1743601657796,0.1048,85806.0,85804.0,0.0001747]
[1743601657996,0.24047098,85806.0,85804.0,0.0001747]
[1743601658303,0.13567098,85806.0,85804.0,0.0001747]
[1743601658503,0.00168,85806.0,85804.0,0.0001747]
[1743601658701,0.6082,85819.0,85804.0,0.0001747]
[1743601658903,0.0596,85818.0,85804.0,0.0001747]
[1743601659097,0.12873031,85805.0,85804.0,0.0001747]
[1743601659298,0.0016,85805.0,85804.0,0.0001747]
[1743601659698,0.12727178,85805.0,85804.0,0.0001747]
[1743601659902,0.12727178,85805.0,85785.0,0.2172]
[1743601659903,0.27727178,85805.0,85785.0,0.2172]
[1743601660103,0.3608,85799.0,85785.0,0.2172]
[1743601660302,0.49752,85799.0,85785.0,0.1107]
[1743601660503,0.31095599,85795.0,85786.0,0.1065]
[1743601660705,0.3608,85792.0,85785.0,0.1107]
[1743601661008,0.23638036,85791.0,85785.0,0.1107]
[1743601661209,0.23802036,85791.0,85785.0,0.1107]
[1743601661410,0.29772036,85791.0,85785.0,0.1107]
[1743601663098,0.29772036,85791.0,85780.0,0.00017481]
[1743601663099,0.3608,85788.0,85780.0,0.00017481]
[1743601663305,0.1705,85787.0,85780.0,0.00017481]
[1743601663500,0.3056498,85787.0,85780.0,0.00017481]
[1743601663817,0.1351498,85787.0,85780.0,0.00017481]
[1743601664005,0.1351498,85787.0,85784.0,0.2128]
[1743601664203,0.2416498,85787.0,85784.0,0.1049]
[1743601664603,0.0597,85786.0,85780.0,0.00017481]
[1743601664911,0.0613,85786.0,85780.0,0.00017481]
[1743601665118,0.23625627,85785.0,85780.0,0.00017481]
[1743601665419,0.23785627,85785.0,85780.0,0.00017481]
[1743601666010,0.29755627,85785.0,85780.0,0.00017481]
[1743601666223,0.0016,85785.0,85780.0,0.00017481]
[1743601666513,0.00057,85792.0,85784.0,0.215]
[1743601666716,0.00057,85792.0,85788.0,0.3608]
[1743601667015,0.3608,85801.0,85789.0,0.1124]
[1743601667317,0.31095599,85820.0,85796.0,0.3608]
[1743601667614,0.00108001,85820.0,85807.0,0.3608]
[1743601667811,0.13105943,85819.0,85808.0,0.2162]
[1743601668307,0.1024,85818.0,85808.0,0.2162]
[1743601668708,0.3608,85814.0,85808.0,0.1119]
[1743601668910,0.1024,85813.0,85808.0,0.1119]
[1743601669112,0.29102069,85813.0,85808.0,0.1119]
[1743601669316,0.3608,85811.0,85779.0,0.3608]
[1743601669519,0.31095599,85793.0,85784.0,0.1119]
[1743601669814,0.22904,85792.0,85784.0,0.1119]
[1743601670006,0.42437236,85792.0,85784.0,0.00108]
[1743601670219,0.3608,85787.0,85784.0,0.00108]
[1743601670419,0.1655,85786.0,85784.0,0.00108]
[1743601670714,0.30015235,85786.0,85784.0,0.00108]
[1743601670911,0.30123236,85786.0,85784.0,0.00108]
[1743601671113,0.30015235,85786.0,85783.0,0.48013672]
[1743601671411,0.30015235,85786.0,85773.0,0.1119]
[1743601671719,0.3608,85774.0,85743.0,0.3608]
[1743601672015,0.23182,85773.0,85758.0,0.1058]
[1743601672208,0.36501404,85773.0,85762.0,0.1054]
[1743601672713,0.13319404,85773.0,85766.0,0.36126638]
[1743601672911,0.00017481,85778.0,85767.0,0.1058]
[1743601673109,0.00017481,85778.0,85777.0,0.3608]
[1743601673605,0.12528,85794.0,85777.0,0.3608]
[1743601673813,0.12528,85794.0,85778.0,0.1108]
[1743601674113,0.13188471,85793.0,85778.0,0.1108]
[1743601674317,0.3608,85792.0,85778.0,0.1108]
[1743601674614,0.58832,85792.0,85778.0,0.1108]
[1743601674818,0.12674498,85791.0,85778.0,0.1108]
[1743601675222,0.41355599,85790.0,85778.0,0.1108]
[1743601675418,0.3608,85782.0,85766.0,0.00046638]
[1743601675718,0.3608,85770.0,85766.0,0.00046638]
[1743601675905,0.12484,85769.0,85766.0,0.00110638]
[1743601676221,0.24987587,85769.0,85766.0,0.00046638]
[1743601676419,0.12503587,85769.0,85767.0,0.1062]
[1743601676615,0.00017481,85776.0,85768.0,0.3608]
[1743601676819,0.00017481,85776.0,85768.0,0.36148]
[1743601677020,0.12229446,85775.0,85768.0,0.00068]
[1743601677317,0.48385446,85775.0,85768.0,0.00068]
[1743601677621,0.3608,85769.0,85750.0,0.00046647]
[1743601677811,0.3608,85752.0,85751.0,0.63538574]
[1743601678015,0.36156,85752.0,85751.0,0.63538574]
[1743601678324,0.63684605,85752.0,85735.0,0.1062]
[1743601678514,0.3608,85739.0,85734.0,0.00046656]
[1743601678714,0.23208,85738.0,85734.0,0.00046656]
[1743601678914,0.36473238,85738.0,85734.0,0.00046656]
[1743601679321,0.46873238,85738.0,85734.0,0.00046656]
[1743601679523,0.47758381,85738.0,85734.0,0.00046656]
[1743601679914,0.46873238,85738.0,85734.0,0.00046656]
[1743601680218,0.36473238,85738.0,85734.0,0.00046656]
[1743601680728,0.37346572,85738.0,85734.0,0.00046656]
[1743601680928,0.13265238,85738.0,85735.0,0.3608]
[1743601681119,0.00092,85738.0,85736.0,0.1078]
[1743601681314,0.00017492,85745.0,85736.0,0.10844]
[1743601681622,0.12911414,85737.0,85736.0,0.10844]
[1743601681827,0.24297613,85744.0,85736.0,0.10844]
[1743601682035,0.00092,85744.0,85736.0,0.10844]
[1743601682327,0.13197613,85743.0,85736.0,0.10844]
[1743601682522,0.00017492,85745.0,85742.0,0.3608]
[1743601682733,0.3608,85771.0,85743.0,0.1103]
[1743601683025,0.10456711,85766.0,85755.0,0.3608]
[1743601683224,0.10456711,85766.0,85756.0,0.2123]
[1743601683225,0.12441507,85765.0,85756.0,0.2123]
[1743601683425,0.00092,85765.0,85764.0,0.3608]
[1743601683633,0.1043,85805.0,85764.0,0.36144]
[1743601683926,0.31095599,85800.0,85780.0,0.7216]
[1743601684124,0.41885599,85800.0,85785.0,0.3608]
[1743601684325,0.12235996,85788.0,85786.0,0.102]
[1743601684630,0.3608,85787.0,85786.0,0.1028]
[1743601684815,0.46930001,85787.0,85778.0,0.00017492]
[1743601685020,0.46930001,85787.0,85767.0,0.3608]
[1743601685021,0.3608,85780.0,85767.0,0.3608]
[1743601685221,0.00068,85780.0,85767.0,0.36148]
[1743601685419,0.13146098,85779.0,85767.0,0.36148]
[1743601685731,0.1075,85778.0,85767.0,0.36148]
[1743601686032,0.3608,85775.0,85767.0,0.00068]
[1743601686215,0.1075,85774.0,85759.0,0.3608]
[1743601686415,0.13196828,85774.0,85773.0,0.3608]
[1743601686619,0.13196828,85774.0,85773.0,0.3614]
[1743601686820,0.00068,85774.0,85773.0,0.3614]
[1743601687024,0.00017492,85781.0,85773.0,0.3614]
[1743601687225,0.00085492,85781.0,85780.0,0.3608]
[1743601687523,0.13114066,85780.0,85767.0,0.1067]
[1743601687822,0.2111,85779.0,85767.0,0.10734]
[1743601688128,0.21178,85779.0,85768.0,0.1055]
[1743601688320,0.3608,85774.0,85768.0,0.1061]
[1743601688513,0.1099,85773.0,85768.0,0.1055]
[1743601688712,0.13024024,85773.0,85770.0,0.3608]
[1743601688934,0.13024024,85773.0,85771.0,0.1121]
[1743601688935,0.12956024,85773.0,85771.0,0.1121]
[1743601689224,0.00017492,85781.0,85771.0,0.2237]
[1743601689433,0.12956024,85780.0,85771.0,0.2237]
[1743601689823,0.00089492,85781.0,85771.0,0.2237]
[1743601690028,0.13013602,85780.0,85771.0,0.2237]
[1743601690331,0.1099,85779.0,85771.0,0.2237]
[1743601690531,0.13089602,85780.0,85771.0,0.2237]
[1743601690734,0.13109152,85778.0,85776.0,0.3608]
[1743601690931,0.13109152,85778.0,85777.0,0.111]
[1743601691231,0.00085492,85781.0,85777.0,0.2231]
[1743601691432,0.00017492,85781.0,85777.0,0.2231]
[1743601691634,0.13109152,85780.0,85777.0,0.2231]
[1743601692930,0.00017492,85781.0,85777.0,0.2231]
[1743601693525,0.3608,85778.0,85777.0,0.111]
[1743601693730,0.3608,85778.0,85769.0,0.1105]
[1743601694031,0.3608,85778.0,85765.0,0.114]
[1743601694032,0.2257,85777.0,85765.0,0.114]
[1743601694329,0.3608,85767.0,85750.0,0.1105]
[1743601694534,0.4183,85776.0,85741.0,0.2245]
[1743601694535,0.3608,85751.0,85741.0,0.2245]
[1743601694737,0.3608,85748.0,85741.0,0.114]
[1743601695031,0.2174,85747.0,85735.0,0.20241156]
[1743601695231,0.34026293,85747.0,85735.0,0.20241156]
[1743601695531,0.3608,85740.0,85735.0,0.20241156]
[1743601695734,0.2174,85739.0,85735.0,0.20305156]
[1743601695925,0.35059434,85739.0,85735.0,0.20305156]
[1743601696632,0.3608,85738.0,85735.0,0.20305156]
[1743601696932,0.119,85737.0,85735.0,0.20305156]
[1743601697234,0.11888,85736.0,85735.0,0.05606364]
[1743601697430,0.11956,85736.0,85735.0,0.05606364]
[1743601697626,0.45916455,85736.0,85735.0,0.05606364]
[1743601697829,0.60916455,85736.0,85735.0,0.05606364]
[1743601698032,0.60916455,85736.0,85735.0,0.05542364]
[1743601698532,1.28100455,85736.0,85735.0,0.05542364]
[1743601698739,0.12918455,85736.0,85735.0,0.05542364]
[1743601699029,0.41847492,85750.0,85735.0,0.63610364]
[1743601699030,0.00017492,85750.0,85735.0,0.63610364]
[1743601699226,0.3608,85774.0,85735.0,0.63610364]
[1743601699227,0.3608,85774.0,85749.0,0.7216]
[1743601699430,0.2111,85773.0,85759.0,0.3608]
[1743601699730,0.2111,85773.0,85760.0,0.2192]
[1743601699731,0.13536223,85763.0,85760.0,0.2192]
[1743601699930,0.2083184,85775.0,85762.0,0.3608]
[1743601700130,0.2083184,85775.0,85774.0,0.3608]
[1743601700334,0.2092384,85775.0,85774.0,0.36172]
[1743601700732,0.33424046,85775.0,85774.0,0.36172]
[1743601701033,0.33424046,85775.0,85774.0,0.00092]
[1743601701340,0.33424046,85775.0,85762.0,0.3608]
[1743601701341,0.33424046,85775.0,85769.0,0.3608]
[1743601701527,0.214,85774.0,85769.0,0.36168]
[1743601701728,0.3608,85773.0,85769.0,0.00088]
[1743601701932,0.48513159,85773.0,85762.0,0.3608]
[1743601702230,0.214,85772.0,85762.0,0.36176]
[1743601702430,0.21488001,85772.0,85762.0,0.36176]
[1743601702632,0.12373158,85771.0,85762.0,0.36176]
[1743601702834,0.12461159,85771.0,85762.0,0.36176]
[1743601703235,0.00088001,85771.0,85762.0,0.36176]
[1743601703534,0.12228278,85770.0,85762.0,0.36176]
[1743601703726,0.12316279,85770.0,85762.0,0.36176]
[1743601703930,0.12316279,85770.0,85769.0,0.3608]
[1743601704127,0.00092,85770.0,85769.0,0.36172]
[1743601704323,0.12836002,85770.0,85769.0,0.36172]
[1743601704528,0.12952002,85770.0,85769.0,0.36172]
[1743601704727,0.00116,85770.0,85769.0,0.36172]
[1743601705434,0.13396734,85770.0,85769.0,0.36172]
[1743601705635,0.13456735,85770.0,85769.0,0.36172]
[1743601705940,0.00060001,85770.0,85769.0,0.36172]
[1743601706135,0.12410113,85770.0,85769.0,0.36172]
[1743601707433,0.24086113,85770.0,85769.0,0.36172]
[1743601708235,0.12410113,85770.0,85769.0,0.36172]
[1743601709031,0.12410113,85770.0,85762.0,0.3608]
[1743601709241,0.2164,85769.0,85762.0,0.36168]
[1743601709432,0.21728001,85769.0,85762.0,0.36168]
[1743601709632,0.13507645,85768.0,85763.0,0.2127]
[1743601709835,0.13507645,85768.0,85763.0,0.1037]
[1743601710044,0.2208,85767.0,85763.0,0.1037]
[1743601710439,0.3608,85765.0,85749.0,0.3608]
[1743601710648,0.3608,85765.0,85742.0,0.3608]
[1743601710649,0.3608,85753.0,85742.0,0.3608]
[1743601710834,0.3608,85743.0,85734.0,0.00046656]
[1743601711033,0.2208,85742.0,85734.0,0.00046656]
[1743601711344,0.35488974,85742.0,85734.0,0.00046656]
[1743601711842,0.3608,85735.0,85718.0,0.00046664]
[1743601712036,0.3608,85726.0,85718.0,0.00046664]
[1743601712239,0.2208,85725.0,85718.0,0.00046664]
[1743601712435,0.35317465,85725.0,85718.0,0.00046664]
[1743601712846,0.35317465,85725.0,85718.0,0.36126664]
[1743601712847,0.13237465,85725.0,85718.0,0.36126664]
[1743601713347,0.1127,85729.0,85718.0,0.36126664]
[1743601713546,0.12183959,85728.0,85718.0,0.36126664]
[1743601713949,0.12183959,85728.0,85727.0,0.3608]
[1743601714835,0.24417571,85732.0,85727.0,0.3608]
[1743601715030,0.13147571,85731.0,85728.0,0.238]
[1743601715236,0.3608,85730.0,85728.0,0.0006]
[1743601715438,0.60200001,85730.0,85718.0,0.36126664]
[1743601715642,0.13147571,85729.0,85718.0,0.36194664]
[1743601715943,0.13207572,85729.0,85718.0,0.36194664]
[1743601716250,0.2628,85728.0,85718.0,0.36194664]
[1743601716435,0.3608,85719.0,85711.0,0.002]
[1743601716635,0.2628,85718.0,85712.0,0.75137251]
[1743601716845,0.38723317,85718.0,85712.0,0.75137251]
[1743601717145,0.38723317,85718.0,85717.0,0.3608]
[1743601717146,0.12443317,85718.0,85717.0,0.3608]
[1743601717348,0.12367317,85718.0,85717.0,0.3614]
[1743601717851,0.00017492,85724.0,85717.0,0.3614]
[1743601718041,0.13209514,85723.0,85719.0,0.3608]
[1743601718239,0.133,85722.0,85719.0,0.3614]
[1743601718440,0.26364,85722.0,85719.0,0.3614]
[1743601718645,0.13209514,85721.0,85719.0,0.3614]
[1743601718844,0.13285514,85721.0,85719.0,0.3614]
[1743601719050,0.2525,85720.0,85719.0,0.3614]
[1743601719244,0.25326,85720.0,85719.0,0.3614]
[1743601719445,0.37466313,85720.0,85719.0,0.3614]
[1743601720442,0.73546313,85720.0,85719.0,0.0006]
[1743601720653,0.37466313,85720.0,85713.0,0.2543]
[1743601720840,0.37466313,85720.0,85713.0,0.2549]
[1743601721035,0.11388,85719.0,85713.0,0.2549]
[1743601721242,0.11464,85719.0,85713.0,0.2549]
[1743601721443,0.38389203,85718.0,85713.0,0.2549]
[1743601721645,0.38469203,85718.0,85713.0,0.0006]
[1743601723245,0.11328,85717.0,85713.0,0.0006]
[1743601723445,0.11412,85717.0,85713.0,0.0006]
[1743601723746,0.38498702,85716.0,85713.0,0.0006]
[1743601723943,0.12724702,85716.0,85713.0,0.0006]
[1743601724138,0.12724702,85716.0,85713.0,0.2571]
[1743601724340,0.12724702,85716.0,85714.0,0.3608]
[1743601724544,0.133,85729.0,85714.0,0.3614]
[1743601724740,0.11296,85733.0,85723.0,0.3608]
[1743601724955,0.3608,85757.0,85723.0,0.47376]
[1743601725147,0.1232,85758.0,85734.0,0.3608]
[1743601725449,0.2089584,85754.0,85753.0,0.7216]
[1743601725638,0.2089584,85754.0,85753.0,0.3614]
[1743601725842,0.34125275,85754.0,85753.0,0.3614]
[1743601726044,0.34125275,85754.0,85753.0,0.0006]
[1743601726240,0.34125275,85754.0,85745.0,0.00017492]
[1743601726452,0.3608,85752.0,85745.0,0.00077492]
[1743601726658,0.36692,85751.0,85745.0,0.00077492]
[1743601726847,0.49454338,85751.0,85745.0,0.00077492]
[1743601727250,0.24034338,85751.0,85745.0,0.25827492]
[1743601727453,0.37134338,85751.0,85745.0,0.25827492]